fUST/lending_fUST_20250124
["ID","MTS","AMOUNT","RATE_DAILY","PERIOD"]
[350146956,1737652246159,-500.0,0.00019589,3]
[350146958,1737652246168,-500.0,0.00019589,3]
[350146960,1737652246178,-500.0,0.00019589,3]
[350146962,1737652246189,-500.0,0.00019589,3]
[350146964,1737652246201,-621.15,0.00019589,3]
[350146966,1737652246210,-500.0,0.00019589,3]
[350146968,1737652246219,-178.84,0.00019589,3]
[350146970,1737652246228,-507.93520715,0.00019589,3]
[350146972,1737652246238,-1663.58,0.00019589,3]
[350146974,1737652246248,-500.0,0.00019589,3]
[350146976,1737652246258,-500.0,0.00019589,3]
[350146978,1737652246267,-500.0,0.00019589,3]
[350146980,1737652246276,-500.0,0.00019589,3]
[350146982,1737652246285,-500.0,0.00019589,3]
[350146984,1737652246295,-304.00982534,0.00019589,3]
[350146986,1737652246304,-500.0,0.00019589,3]
[350146988,1737652246314,-500.0,0.00019589,3]
[350146990,1737652246323,-500.0,0.00019589,3]
[350146992,1737652246332,-1277.83,0.00019589,3]
[350146994,1737652246342,-500.0,0.00019589,3]
[350146996,1737652246351,-500.0,0.00019589,3]
[350146998,1737652246360,-523.12,0.00019589,3]
[350147000,1737652246369,-500.0,0.00019589,3]
[350147002,1737652246378,-500.0,0.00019589,3]
[350147004,1737652246388,-500.0,0.00019589,3]
[350147006,1737652246397,-500.0,0.00019589,3]
[350147008,1737652246407,-546.78,0.00019589,3]
[350147010,1737652246416,-500.0,0.00019589,3]
[350147012,1737652246426,-538.38,0.00019589,3]
[350147015,1737652246438,-500.0,0.00019589,3]
[350147016,1737652246447,-500.0,0.00019589,3]
[350147018,1737652246457,-500.0,0.00019589,3]
[350147020,1737652246466,-500.0,0.00019589,3]
[350147023,1737652246476,-500.0,0.00019589,3]
[350147024,1737652246485,-500.0,0.00019589,3]
[350147027,1737652246495,-4349.76,0.00019589,3]
[350147029,1737652246504,-500.0,0.00019589,3]
[350147031,1737652246514,-500.0,0.00019589,3]
[350147033,1737652246527,-500.0,0.00019589,3]
[350147035,1737652246536,-586.70680086,0.00019589,3]
[350147037,1737652246545,-629.49,0.00019589,3]
[350147039,1737652246555,-598.48,0.00019589,3]
[350147041,1737652246564,-500.0,0.00019589,3]
[350147043,1737652246574,-500.0,0.00019589,3]
[350147045,1737652246583,-500.0,0.00019589,3]
[350147047,1737652246592,-500.0,0.00019589,3]
[350147049,1737652246601,-592.04,0.00019589,3]
[350147051,1737652246610,-252.263,0.00019674,2]
[350147053,1737652246619,-784.92,0.000197,2]
[350147055,1737652246628,-300.0,0.000197,8]
[350147057,1737652246637,-500.0,0.00019726,3]
[350147059,1737652246646,-500.0,0.00019726,3]
[350147061,1737652246655,-278.67,0.00019726,3]
[350147063,1737652246664,-500.0,0.00019726,3]
[350147065,1737652246673,-500.0,0.00019726,3]
[350147067,1737652246685,-500.0,0.00019726,2]
[350147069,1737652246694,-500.0,0.00019726,3]
[350147071,1737652246703,-339.12,0.00019726,3]
[350147073,1737652246711,-609.37,0.00019726,3]
[350147075,1737652246720,-1052.94,0.00019726,3]
[350147077,1737652246729,-500.0,0.00019726,2]
[350147079,1737652246738,-500.0,0.00019726,3]
[350147081,1737652246747,-500.0,0.00019726,3]
[350147083,1737652246756,-653.13,0.00019726,3]
[350147085,1737652246765,-500.0,0.00019726,3]
[350147087,1737652246774,-500.0,0.00019726,3]
[350147089,1737652246783,-500.0,0.00019726,3]
[350147091,1737652246793,-500.0,0.00019726,3]
[350147093,1737652246802,-1663.58,0.00019726,3]
[350147095,1737652246811,-500.0,0.00019726,3]
[350147097,1737652246820,-500.0,0.00019726,3]
[350147099,1737652246829,-500.0,0.00019726,3]
[350147101,1737652246838,-500.0,0.00019726,3]
[350147103,1737652246847,-500.0,0.00019726,3]
[350147105,1737652246856,-622.66956473,0.00019726,3]
[350147107,1737652246870,-1277.83,0.00019726,3]
[350147109,1737652246879,-500.0,0.00019726,3]
[350147111,1737652246888,-523.12,0.00019726,3]
[350147113,1737652246897,-500.0,0.00019726,3]
[350147115,1737652246906,-500.0,0.00019726,3]
[350147117,1737652246916,-500.0,0.00019726,3]
[350147119,1737652246925,-500.0,0.00019726,3]
[350147121,1737652246935,-538.38,0.00019726,3]
[350147122,1737652246945,-500.0,0.00019726,3]
[350147124,1737652246954,-500.0,0.00019726,3]
[350147126,1737652246963,-379.86934078,0.00019726,3]
[350147129,1737652246973,-500.0,0.00019726,3]
[350147131,1737652246982,-500.0,0.00019726,3]
[350147132,1737652246992,-500.0,0.00019726,3]
[350147133,1737652247001,-4349.76,0.00019726,3]
[350147134,1737652247010,-500.0,0.00019726,3]
[350147135,1737652247019,-442.61,0.00019726,3]
[350147136,1737652247033,-500.0,0.00019726,3]
[350147137,1737652247042,-629.49,0.00019726,3]
[350147138,1737652247051,-500.0,0.00019726,3]
[350147139,1737652247061,-251.63,0.00019726,3]
[350147140,1737652247070,-500.0,0.00019726,3]
[350147141,1737652247079,-193.34,0.00019726,3]
[350147142,1737652247088,-592.04,0.00019726,3]
[350147143,1737652247098,-416.97700005,0.00019742,2]
[350147144,1737652247107,-862.91623972,0.00019766,2]
[350147145,1737652247117,-434.73234222,0.00019863,3]
[350147146,1737652247126,-500.0,0.00019863,3]
[350147147,1737652247136,-500.0,0.00019863,3]
[350147148,1737652247145,-500.0,0.00019863,3]
[350147149,1737652247155,-500.0,0.00019863,2]
[350147150,1737652247164,-500.0,0.00019863,3]
[350147151,1737652247176,-609.37,0.00019863,3]
[350147152,1737652247187,-1052.94,0.00019863,3]
[350147153,1737652247198,-500.0,0.00019863,2]
[350147154,1737652247209,-500.0,0.00019863,3]
[350147155,1737652247219,-500.0,0.00019863,3]
[350147156,1737652247228,-653.13,0.00019863,3]
[350147157,1737652247239,-500.0,0.00019863,3]
[350147158,1737652247248,-500.0,0.00019863,3]
[350147159,1737652247257,-500.0,0.00019863,3]
[350147160,1737652247266,-500.0,0.00019863,3]
[350147161,1737652247277,-1663.58,0.00019863,3]
[350147162,1737652247287,-500.0,0.00019863,3]
[350147163,1737652247297,-500.0,0.00019863,3]
[350147164,1737652247307,-213.1,0.00019863,3]
[350147165,1737652247316,-500.0,0.00019863,3]
[350147166,1737652247325,-1277.83,0.00019863,3]
[350147167,1737652247335,-500.0,0.00019863,3]
[350147168,1737652247345,-523.12,0.00019863,3]
[350147169,1737652247356,-500.0,0.00019863,3]
[350147170,1737652247366,-500.0,0.00019863,3]
[350147171,1737652247376,-500.0,0.00019863,3]
[350147172,1737652247386,-554.13940602,0.00019863,3]
[350147173,1737652247396,-538.38,0.00019863,3]
[350147174,1737652247406,-500.0,0.00019863,3]
[350147175,1737652247415,-500.0,0.00019863,3]
[350147176,1737652247425,-260.12,0.00019863,3]
[350147177,1737652247438,-551.45,0.00019863,3]
[350147178,1737652247447,-500.0,0.00019863,3]
[350147179,1737652247457,-4349.76,0.00019863,3]
[350147180,1737652247466,-500.0,0.00019863,3]
[350147181,1737652247476,-500.0,0.00019863,3]
[350147182,1737652247486,-629.49,0.00019863,3]
[350147183,1737652247496,-500.0,0.00019863,3]
[350147184,1737652247506,-249.92154705,0.00019863,3]
[350147185,1737652247515,-592.04,0.00019863,3]
[350147186,1737652247524,-500.0,0.00019883,2]
[350147187,1737652247533,-521.66613911,0.000199,2]
[350147188,1737652247543,-500.0,0.00019918,3]
[350147189,1737652247552,-186.13897542,0.00019918,3]
[350147190,1737652247561,-500.0,0.00019918,3]
[350147191,1737652247571,-500.0,0.00019919,3]
[350147192,1737652247580,-500.0,0.00019919,3]
[350147193,1737652247590,-500.0,0.00019919,3]
[350147194,1737652247599,-500.0,0.00019919,2]
[350147195,1737652247608,-500.0,0.00019919,3]
[350147196,1737652247617,-500.0,0.00019919,3]
[350147197,1737652247627,-500.0,0.00019919,3]
[350147198,1737652247637,-606.51,0.00019919,3]
[350147199,1737652247651,-500.0,0.00019919,3]
[350147200,1737652247660,-500.0,0.00019919,3]
[350147201,1737652247670,-500.0,0.00019919,3]
[350147202,1737652247679,-500.0,0.00019919,3]
[350147203,1737652247692,-500.0,0.00019919,3]
[350147204,1737652247701,-500.0,0.00019919,3]
[350147205,1737652247712,-500.0,0.00019919,3]
[350147206,1737652247726,-500.0,0.00019919,3]
[350147208,1737652247735,-500.0,0.00019919,3]
[350147210,1737652247745,-182.91289199,0.00019919,3]
[350147212,1737652247754,-500.0,0.00019919,3]
[350147213,1737652247763,-500.0,0.00019919,3]
[350147215,1737652247772,-500.0,0.00019919,3]
[350147217,1737652247782,-500.0,0.00019919,3]
[350147219,1737652247791,-500.0,0.00019919,3]
[350147221,1737652247800,-502.70532787,0.00019919,3]
[350147223,1737652247809,-502.06170361,0.00019919,3]
[350147224,1737652247818,-500.0,0.00019919,3]
[350147226,1737652247827,-500.0,0.00019919,3]
[350147228,1737652247837,-500.0,0.00019919,3]
[350147230,1737652247846,-500.0,0.00019919,3]
[350147232,1737652247855,-500.0,0.00019919,3]
[350147234,1737652247863,-500.0,0.00019919,3]
[350147235,1737652247872,-500.0,0.00019919,3]
[350147237,1737652247882,-500.0,0.00019919,3]
[350147238,1737652247891,-500.0,0.00019919,3]
[350147239,1737652247900,-500.0,0.00019919,3]
[350147240,1737652247909,-500.0,0.00019919,3]
[350147241,1737652247919,-220.9646969,0.00019919,3]
[350147244,1737652248007,-1771.12,0.00019919,3]
[350147245,1737652248018,-500.0,0.00019919,3]
[350147246,1737652248027,-500.0,0.00019919,3]
[350147247,1737652248036,-500.0,0.00019919,3]
[350147248,1737652248046,-500.0,0.00019919,3]
[350147249,1737652248055,-503.53312682,0.0001992,3]
[350147250,1737652248064,-503.38657237,0.0001992,3]
[350147251,1737652248073,-500.0,0.0001992,3]
[350147252,1737652248082,-500.0,0.0001992,3]
[350147253,1737652248092,-526.66492609,0.0001992,3]
[350147254,1737652248101,-500.0,0.0001992,3]
[350147255,1737652248110,-525.98111908,0.0001992,3]
[350147256,1737652248120,-500.0,0.0001992,3]
[350147257,1737652248131,-400.0,0.0001992,3]
[350147258,1737652248140,-500.0,0.0001992,3]
[350147259,1737652248151,-500.0,0.0001992,3]
[350147260,1737652248160,-500.0,0.0001992,3]
[350147261,1737652248170,-573.54837292,0.0001992,3]
[350147263,1737652248179,-500.0,0.0001992,3]
[350147265,1737652248193,-500.0,0.0001992,3]
[350147266,1737652248202,-500.0,0.0001992,3]
[350147268,1737652248211,-500.0,0.0001992,3]
[350147269,1737652248221,-500.0,0.0001992,3]
[350147270,1737652248231,-500.0,0.0001992,3]
[350147271,1737652248240,-500.0,0.0001992,3]
[350147273,1737652248250,-500.0,0.0001992,3]
[350147275,1737652248259,-500.0,0.0001992,3]
[350147277,1737652248268,-500.0,0.0001992,3]
[350147279,1737652248278,-500.0,0.0001992,3]
[350147280,1737652248288,-500.0,0.0001992,3]
[350147281,1737652248299,-500.0,0.0001992,3]
[350147283,1737652248308,-500.86824252,0.0001992,3]
[350147285,1737652248319,-500.0,0.0001992,3]
[350147286,1737652248328,-500.0,0.0001992,3]
[350147287,1737652248337,-504.97749948,0.0001992,3]
[350147288,1737652248347,-188.0,0.0001992,2]
[350147289,1737652248356,-513.7883702,0.0001992,3]
[350147290,1737652248367,-500.0,0.0001992,3]
[350147291,1737652248376,-500.0,0.0001992,3]
[350147292,1737652248385,-500.0,0.0001992,3]
[350147293,1737652248395,-500.0,0.0001992,3]
[350147294,1737652248404,-500.0,0.0001992,3]
[350147295,1737652248414,-500.0,0.0001992,3]
[350147296,1737652248424,-500.0,0.0001992,3]
[350147297,1737652248436,-500.0,0.0001992,3]
[350147298,1737652248445,-500.0,0.0001992,3]
[350147299,1737652248454,-500.0,0.0001992,3]
[350147300,1737652248464,-500.0,0.0001992,3]
[350147301,1737652248473,-290.07180557,0.0001992,3]
[350147302,1737652248482,-605.8451724,0.0001992,3]
[350147303,1737652248491,-500.0,0.0001992,3]
[350147304,1737652248501,-7228.23615948,0.0001993,2]
[350147305,1737652248514,-500.0,0.00019948,2]
[350147306,1737652248523,-559.91687658,0.00019948,2]
[350147307,1737652248532,-500.0,0.00019973,2]
[350147309,1737652248542,-500.0,0.00019973,2]
[350147311,1737652248551,-1029.0,0.0002,3]
[350147313,1737652248560,-1027.0,0.0002,3]
[350147314,1737652248569,-1027.0,0.0002,3]
[350147316,1737652248579,-1027.0,0.0002,3]
[350147318,1737652248587,-7072.0,0.0002,2]
[350147320,1737652248596,-249.82890125,0.0002,3]
[350147322,1737652248606,-500.0,0.0002,3]
[350147323,1737652248614,-500.0,0.0002,3]
[350147324,1737652248623,-500.0,0.0002,2]
[350147325,1737652248633,-500.0,0.0002,3]
[350147326,1737652248642,-609.37,0.0002,3]
[350147327,1737652248651,-160.0,0.0002,3]
[350147328,1737652248661,-1052.94,0.0002,3]
[350147329,1737652248670,-500.0,0.0002,2]
[350147330,1737652248679,-500.0,0.0002,3]
[350147331,1737652248692,-500.0,0.0002,3]
[350147332,1737652248701,-653.13,0.0002,3]
[350147333,1737652248711,-500.0,0.0002,3]
[350147334,1737652248720,-500.0,0.0002,3]
[350147335,1737652248729,-500.0,0.0002,3]
[350147336,1737652248738,-500.0,0.0002,3]
[350147337,1737652248748,-1663.58,0.0002,3]
[350147338,1737652248757,-500.0,0.0002,3]
[350147339,1737652248766,-500.0,0.0002,3]
[350147340,1737652248775,-337.31,0.0002,3]
[350147341,1737652248784,-1277.83,0.0002,3]
[350147342,1737652248793,-500.0,0.0002,3]
[350147343,1737652248804,-523.12,0.0002,3]
[350147344,1737652248814,-500.0,0.0002,3]
[350147345,1737652248824,-500.0,0.0002,3]
[350147346,1737652248834,-538.38,0.0002,3]
[350147347,1737652248844,-500.0,0.0002,3]
[350147348,1737652248853,-500.0,0.0002,3]
[350147349,1737652248863,-550.1993368,0.0002,3]
[350147350,1737652248872,-4349.76,0.0002,3]
[350147351,1737652248881,-263.12,0.0002,3]
[350147352,1737652248890,-500.0,0.0002,3]
[350147353,1737652248900,-629.49,0.0002,3]
[350147354,1737652248909,-500.0,0.0002,3]
[350147355,1737652248919,-592.04,0.0002,3]
[350147356,1737652248930,-160.0,0.00020035,2]
[350147357,1737652248942,-521.66613896,0.00020038,2]
[350147358,1737652248951,-500.0,0.00020042,3]
[350147359,1737652248962,-193.58215731,0.00020043,3]
[350147361,1737652248972,-505.28058567,0.00020043,3]
[350147363,1737652248982,-500.36886257,0.00020043,3]
[350147365,1737652248992,-453.24663508,0.00020043,3]
[350147366,1737652249001,-406.53801196,0.00020043,3]
[350147368,1737652249010,-500.0,0.00020043,3]
[350147370,1737652249020,-500.0,0.00020043,3]
[350147372,1737652249030,-501.10294041,0.00020043,3]
[350147373,1737652249039,-500.0,0.00020043,3]
[350147375,1737652249048,-623.56279928,0.00020043,3]
[350147377,1737652249057,-303.0680154,0.00020043,3]
[350147378,1737652249066,-500.0,0.00020055,3]
[350147380,1737652249076,-500.0,0.00020056,3]
[350147381,1737652249085,-500.0,0.00020056,2]
[350147382,1737652249094,-500.0,0.00020056,3]
[350147383,1737652249103,-500.0,0.00020056,3]
[350147384,1737652249112,-500.0,0.00020056,3]
[350147385,1737652249121,-500.0,0.00020056,3]
[350147386,1737652249140,-500.0,0.00020056,3]
[350147387,1737652249160,-500.0,0.00020056,3]
[350147388,1737652249182,-500.0,0.00020056,3]
[350147389,1737652249203,-500.0,0.00020056,3]
[350147390,1737652249222,-500.0,0.00020056,3]
[350147391,1737652249243,-500.0,0.00020056,3]
[350147392,1737652249264,-500.0,0.00020056,3]
[350147393,1737652249285,-563.01,0.00020056,3]
[350147394,1737652249305,-519.41,0.00020056,3]
[350147395,1737652249326,-500.0,0.00020056,3]
[350147396,1737652249338,-1771.12,0.00020056,3]
[350147397,1737652249347,-500.0,0.00020056,3]
[350147398,1737652249356,-500.0,0.00020056,3]
[350147399,1737652249366,-500.0,0.00020057,3]
[350147400,1737652249376,-500.0,0.00020057,3]
[350147401,1737652249386,-500.0,0.00020057,3]
[350147402,1737652249396,-500.0,0.00020057,3]
[350147403,1737652249406,-500.0,0.00020057,3]
[350147404,1737652249416,-500.0,0.00020057,3]
[350147405,1737652249425,-500.0,0.00020057,3]
[350147406,1737652249437,-500.0,0.00020057,3]
[350147407,1737652249447,-500.0,0.00020057,3]
[350147408,1737652249456,-500.0,0.00020057,3]
[350147409,1737652249466,-500.0,0.00020057,3]
[350147410,1737652249475,-251.49910826,0.00020057,3]
[350147411,1737652249484,-500.0,0.00020057,3]
[350147412,1737652249494,-500.0,0.00020057,3]
[350147413,1737652249503,-500.0,0.00020057,3]
[350147414,1737652249512,-193.38699023,0.00020057,2]
[350147415,1737652249522,-500.0,0.00020057,3]
[350147416,1737652249531,-500.0,0.00020057,3]
[350147417,1737652249540,-3503.73552086,0.00020069,2]
[350147418,1737652249549,-500.0,0.00020132,2]
[350147419,1737652249559,-500.0,0.00020136,3]
[350147420,1737652249568,-156.73,0.00020136,3]
[350147421,1737652249577,-500.0,0.00020136,2]
[350147422,1737652249586,-576.9,0.00020136,3]
[350147423,1737652249596,-609.37,0.00020136,3]
[350147424,1737652249605,-1052.94,0.00020136,3]
[350147425,1737652249614,-500.0,0.00020136,2]
[350147426,1737652249623,-500.0,0.00020136,3]
[350147427,1737652249633,-500.0,0.00020136,3]
[350147428,1737652249641,-653.13,0.00020136,3]
[350147429,1737652249650,-500.0,0.00020136,3]
[350147430,1737652249659,-500.0,0.00020136,3]
[350147431,1737652249669,-500.0,0.00020136,3]
[350147432,1737652249678,-500.0,0.00020136,3]
[350147433,1737652249689,-1663.58,0.00020136,3]
[350147434,1737652249698,-500.0,0.00020136,3]
[350147435,1737652249707,-500.0,0.00020136,3]
[350147436,1737652249715,-1277.83,0.00020136,3]
[350147437,1737652249724,-500.0,0.00020136,3]
[350147438,1737652249734,-523.12,0.00020136,3]
[350147439,1737652249744,-500.0,0.00020136,3]
[350147440,1737652249753,-500.0,0.00020136,3]
[350147441,1737652249762,-538.38,0.00020136,3]
[350147442,1737652249771,-500.0,0.00020136,3]
[350147443,1737652249780,-500.0,0.00020136,3]
[350147444,1737652249789,-4349.76,0.00020136,3]
[350147445,1737652249798,-500.0,0.00020136,3]
[350147446,1737652249808,-629.49,0.00020136,3]
[350147447,1737652249817,-500.0,0.00020136,3]
[350147448,1737652249826,-500.0,0.00020164,2]
[350147449,1737652249835,-521.66613896,0.00020176,2]
[350147450,1737652249844,-500.51000536,0.0002018,3]
[350147451,1737652249854,-500.0,0.00020192,3]
[350147452,1737652249863,-500.0,0.00020193,3]
[350147453,1737652249872,-500.0,0.00020193,2]
[350147454,1737652249881,-500.0,0.00020193,3]
[350147455,1737652249890,-500.0,0.00020193,3]
[350147456,1737652249899,-500.0,0.00020193,3]
[350147457,1737652249908,-500.0,0.00020193,3]
[350147458,1737652249916,-500.0,0.00020193,3]
[350147459,1737652249925,-500.0,0.00020193,3]
[350147460,1737652249934,-500.0,0.00020193,3]
[350147461,1737652249943,-407.18829591,0.00020193,3]
[350147462,1737652250026,-1771.12,0.00020193,3]
[350147463,1737652250036,-500.0,0.00020193,3]
[350147464,1737652250045,-511.39507894,0.00020194,3]
[350147465,1737652250054,-498.10414478,0.00020194,3]
[350147466,1737652250063,-618.04485486,0.00020194,3]
[350147467,1737652250072,-500.0,0.00020194,3]
[350147468,1737652250080,-378.58,0.00020273,3]
[350147469,1737652250089,-500.0,0.00020273,2]
[350147470,1737652250099,-609.37,0.00020273,3]
[350147471,1737652250107,-1052.94,0.00020273,3]
[350147472,1737652250117,-500.0,0.00020273,2]
[350147473,1737652250126,-500.0,0.00020273,3]
[350147474,1737652250136,-500.0,0.00020273,3]
[350147475,1737652250145,-653.13,0.00020273,3]
[350147476,1737652250154,-500.0,0.00020273,3]
[350147477,1737652250164,-500.0,0.00020273,3]
[350147478,1737652250173,-500.0,0.00020273,3]
[350147479,1737652250183,-1663.58,0.00020273,3]
[350147480,1737652250197,-500.0,0.00020273,3]
[350147481,1737652250206,-485.54847642,0.00020273,3]
[350147482,1737652250215,-1277.83,0.00020273,3]
[350147483,1737652250224,-500.0,0.00020273,3]
[350147484,1737652250235,-523.12,0.00020273,3]
[350147485,1737652250244,-500.0,0.00020273,3]
[350147486,1737652250253,-500.0,0.00020273,3]
[350147487,1737652250262,-538.38,0.00020273,3]
[350147488,1737652250273,-500.0,0.00020273,3]
[350147489,1737652250283,-355.34824815,0.00020273,3]
[350147490,1737652250292,-4349.76,0.00020273,3]
[350147491,1737652250300,-500.0,0.00020273,3]
[350147492,1737652250310,-629.49,0.00020273,3]
[350147493,1737652250319,-500.0,0.00020273,3]
[350147494,1737652250328,-500.0,0.00020298,2]
[350147495,1737652250338,-500.0,0.00020298,2]
[350147496,1737652250347,-10678.94,0.000203,2]
[350147497,1737652250356,-5860.09,0.000203,2]
[350147498,1737652250364,-521.66613896,0.00020314,2]
[350147499,1737652250373,-500.0,0.00020329,3]
[350147500,1737652250382,-500.0,0.0002033,3]
[350147501,1737652250391,-500.0,0.0002033,2]
[350147502,1737652250401,-500.0,0.0002033,3]
[350147503,1737652250411,-500.0,0.0002033,3]
[350147504,1737652250421,-598.03,0.0002033,3]
[350147505,1737652250430,-500.0,0.0002033,3]
[350147506,1737652250443,-500.0,0.0002033,3]
[350147507,1737652250452,-1771.12,0.0002033,3]
[350147508,1737652250462,-500.0,0.0002033,3]
[350147509,1737652250471,-633.84006734,0.00020336,2]
[350147510,1737652250480,-500.0,0.00020405,2]
[350147511,1737652250490,-500.0,0.0002041,2]
[350147512,1737652250499,-609.37,0.0002041,3]
[350147513,1737652250509,-1052.94,0.0002041,3]
[350147514,1737652250519,-495.483242,0.0002041,2]
[350147515,1737652250527,-500.0,0.0002041,3]
[350147516,1737652250536,-500.0,0.0002041,3]
[350147517,1737652250546,-653.13,0.0002041,3]
[350147518,1737652250555,-500.0,0.0002041,3]
[350147519,1737652250564,-500.0,0.0002041,3]
[350147520,1737652250573,-500.0,0.0002041,3]
[350147521,1737652250583,-1663.58,0.0002041,3]
[350147522,1737652250592,-500.0,0.0002041,3]
[350147523,1737652250601,-1277.83,0.0002041,3]
[350147524,1737652250610,-500.0,0.0002041,3]
[350147525,1737652250620,-523.12,0.0002041,3]
[350147526,1737652250629,-500.0,0.0002041,3]
[350147527,1737652250638,-500.0,0.0002041,3]
[350147528,1737652250647,-538.38,0.0002041,3]
[350147529,1737652250656,-209.18,0.0002041,3]
[350147530,1737652250665,-4349.76,0.0002041,3]
[350147531,1737652250675,-500.0,0.0002041,3]
[350147532,1737652250687,-629.49,0.0002041,3]
[350147533,1737652250696,-500.0,0.0002041,3]
[350147534,1737652250706,-1000.0,0.00020431,2]
[350147535,1737652250715,-400.0,0.00020447,2]
[350147536,1737652250724,-521.66613896,0.00020452,2]
[350147537,1737652250733,-862.91623972,0.00020455,2]
[350147538,1737652250743,-500.0,0.00020467,2]
[350147539,1737652250752,-500.0,0.00020467,3]
[350147540,1737652250761,-500.0,0.00020467,3]
[350147541,1737652250770,-500.0,0.00020467,3]
[350147542,1737652250779,-1771.12,0.00020467,3]
[350147543,1737652250788,-500.0,0.00020467,3]
[350147544,1737652250798,-500.0,0.00020467,3]
[350147545,1737652250807,-14030.38789567,0.00020505,3]
[350147546,1737652250815,-500.0,0.00020547,2]
[350147547,1737652250825,-609.37,0.00020547,3]
[350147548,1737652250834,-1052.94,0.00020547,3]
[350147549,1737652250843,-500.0,0.00020547,3]
[350147550,1737652250852,-500.0,0.00020547,3]
[350147551,1737652250861,-653.13,0.00020547,3]
[350147552,1737652250870,-500.0,0.00020547,3]
[350147553,1737652250879,-500.0,0.00020547,3]
[350147554,1737652250888,-505.37,0.00020547,3]
[350147555,1737652250898,-1663.58,0.00020547,3]
[350147556,1737652250907,-500.0,0.00020547,3]
[350147557,1737652250916,-1277.83,0.00020547,3]
[350147558,1737652250926,-500.0,0.00020547,3]
[350147559,1737652250936,-523.12,0.00020547,3]
[350147560,1737652250945,-500.0,0.00020547,3]
[350147561,1737652250954,-500.0,0.00020547,3]
[350147562,1737652250963,-538.38,0.00020547,3]
[350147563,1737652250972,-4349.76,0.00020547,3]
[350147564,1737652250982,-500.0,0.00020547,3]
[350147565,1737652250992,-629.49,0.00020547,3]
[350147566,1737652251002,-475.4,0.00020547,3]
[350147567,1737652251011,-521.66613896,0.0002059,2]
[350147568,1737652251021,-2000.0,0.000206,2]
[350147569,1737652251030,-500.0,0.00020604,2]
[350147570,1737652251039,-500.0,0.00020604,3]
[350147571,1737652251048,-500.0,0.00020604,3]
[350147572,1737652251057,-500.0,0.00020604,3]
[350147573,1737652251066,-1771.12,0.00020604,3]
[350147574,1737652251075,-474.22,0.00020604,3]
[350147575,1737652251085,-500.0,0.00020684,2]
[350147576,1737652251094,-609.37,0.00020684,3]
[350147577,1737652251103,-1052.94,0.00020684,3]
[350147578,1737652251112,-500.0,0.00020684,3]
[350147579,1737652251121,-186.04,0.00020684,3]
[350147580,1737652251130,-653.13,0.00020684,3]
[350147581,1737652251140,-500.0,0.00020684,3]
[350147582,1737652251149,-500.0,0.00020684,3]
[350147583,1737652251159,-1663.58,0.00020684,3]
[350147584,1737652251169,-192.93485323,0.00020684,3]